[Event "WSTCC-50 2024"]
[Site "Krakow"]
[Date "2024.07.05"]
[Round "4.5"]
[White "Tsiganova, Monika"]
[Black "Jhunjhnuwala, Krishan"]
[Result "1-0"]
[ECO "B31"]
[WhiteElo "1999"]
[BlackElo "2227"]
[Annotator "TA"]
[PlyCount "67"]
[EventDate "2024.07.01"]
[EventType "team-tourn"]
[EventCountry "POL"]
[SourceTitle "playchess.com"]
[Source "ChessBase"]
[SourceQuality "1"]
[TimeControl "40/5400+30:1800+30"]

{[%evp 13,67,29,8,8,10,0,5,-15,-15,-18,-13,-12,-27,-29,72,71,72,59,142,150,148,93,91,93,131,128,176,167,170,169,178,179,181,197,194,192,203,212,208,206,210,204,261,253,428,425,395,434,521,477,481,481,781,794,1049,1040]} 1. e4 {[%emt 0:00:05]} c5 {[%emt 0:00:09]} 2. Nf3 {[%emt 0:00:13]} Nc6 {[%emt 0:00:08]} 3. Bb5 {[%emt 0:00:19]} g6 {[%emt 0:01:07]} 4. O-O {[%emt 0:00:30]} Bg7 {[%emt 0:00:39]} 5. Re1 {[%emt 0:00:42]} Nf6 {[%emt 0:00:43]} 6. h3 {[%emt 0:00:55]} O-O {[%emt 0:01:09]} 7. c3 {[%emt 0:00:51]} Qb6 {[%emt 0:03:27]} 8. a4 {[%emt 0:05:15]} a6 {[%emt 0:01:35]} 9. Bf1 {[%emt 0:02:03]} e5 {[%emt 0:05:21]} 10. Na3 {[%emt 0:16:20][%cal Od2d4,Bb1a3,Ba3c4,Bc4b6,Bb6a4,Ba4c5][%mdl 32] The position is equal.} d5 {[%emt 0:04:27]} 11. exd5 {[%emt 0:05:44]} Nxd5 {[%emt 0:00:16]} 12. Nc4 {[%emt 0:00:12][%csl LRb6,LRe5]} Qc7 {[%emt 0:00:24]} 13. Qb3 {[%emt 0:05:07]} Nde7 {[%emt 0:08:24]} (13... Rd8 $11 {remains equal.}) 14. a5 {[%emt 0:04:12] White is more active.} Be6 {[%emt 0:06:35]} 15. Qb6 $36 {[%emt 0:06:53][%mdl 2048] Black is under pressure.} Qxb6 {[%emt 0:03:52]} (15... Nd5 $14 16. Qxc7 (16. Qxc5 Rfd8 $16) 16... Nxc7) 16. Nxb6 $16 {[%emt 0:00:11]} Rad8 {[%emt 0:01:14] [#]} 17. Ng5 {[%emt 0:01:24]} (17. Na4 $142 $1) 17... Bf5 {[%emt 0:07:08]} 18. Na4 {[%emt 0:04:53]} Bh6 {[%emt 0:06:03] [#]} 19. d3 $1 {[%emt 0:04:37][%cal Og5e6] And now Ne6! would win.} f6 {[%emt 0:09:50] [#]} (19... Bg7 $16 {was necessary.}) 20. Ne6 $1 $18 {[%emt 0:03:07][%mdl 512]} Bxe6 {[%emt 0:05:49]} 21. Bxh6 {[%emt 0:01:31][%cal Bc1h6,Bh6e3,Be3c5][%mdl 32]} Rfe8 {[%emt 0:00:30]} 22. Nxc5 {[%emt 0:00:14]} Bc8 {[%emt 0:00:30]} 23. Ne4 {[%emt 0:06:39]} Kf7 {[%emt 0:01:45]} 24. Be3 {[%emt 0:03:57]} Nd5 {[%emt 0:01:23]} 25. Bc5 {[%emt 0:01:12]} Re6 {[%emt 0:03:19]} 26. d4 {[%emt 0:03:47]} exd4 {[%emt 0:01:10]} 27. cxd4 {[%emt 0:00:11][%cal Bc3d4,Bd4d5,Bd5d6][%mdl 32]} Kg7 {[%emt 0:04:21]} 28. Bc4 {[%emt 0:01:03]} f5 $2 {[%emt 0:03:15]} (28... g5 29. f3 h6) 29. Nc3 {[%emt 0:01:22]} Rxe1+ {[%emt 0:02:17]} 30. Rxe1 {[%emt 0:00:06]} Nf4 {[%emt 0:04:15] White is clearly winning.} 31. Bb6 {[%emt 0:00:33] A strong pair of Bishops.} Rf8 {[%emt 0:04:05]} 32. d5 {[%emt 0:00:13]} Nd8 {[%emt 0:01:04] Black is weak on the dark squares} (32... Nb4 $142 33. Bc5 Nbd3) 33. Re7+ {[%emt 0:04:11]} Nf7 {[%emt 0:01:58]} 34. d6 {[%emt 0:00:17] Weighted Error Value: White=0.06 (flawless) /Black=0.38.  Mistake:       	White=1     	Black=5      Inaccurate:     	---       	Black=2      OK:         	White=12    	Black=9      Best:        	White=1     	Black=3      Strong:       	White=1     	---} 1-0

[Event "WSTCC-50 2024"]
[Site "Krakow"]
[Date "2024.07.05"]
[Round "4.6"]
[White "Petursson, Margeir"]
[Black "Emms, John M"]
[Result "1/2-1/2"]
[ECO "D36"]
[WhiteElo "2397"]
[BlackElo "2428"]
[Annotator "TA"]
[PlyCount "110"]
[EventDate "2024.07.01"]
[EventType "team-tourn"]
[EventCountry "POL"]
[SourceTitle "playchess.com"]
[Source "ChessBase"]
[SourceQuality "1"]
[TimeControl "40/5400+30:1800+30"]

{[%evp 18,110,21,7,18,20,14,0,13,0,0,0,0,-7,4,9,13,-6,-5,-36,-35,-39,-34,-27,-32,-35,-8,-19,-16,-12,-5,-10,0,0,0,0,0,0,0,0,0,0,0,0,0,0,0,0,0,0,38,0,0,0,0,0,0,0,0,0,0,0,0,0,0,0,0,0,0,0,0,0,0,0,0,0,0,0,0,0,0,0,0,0,0,0,0,0,0,0,0,0,0,0,0]} 1. d4 {[%emt 0:00:09]} Nf6 {[%emt 0:00:40]} 2. c4 {[%emt 0:00:10]} e6 {[%emt 0:00:19]} 3. Nc3 {[%emt 0:00:07]} d5 {[%emt 0:00:31]} 4. cxd5 {[%emt 0:02:01]} exd5 {[%emt 0:00:10]} 5. Bg5 {[%emt 0:00:13]} c6 {[%emt 0:00:33]} 6. Qc2 {[%emt 0:01:27]} h6 {[%emt 0:11:34]} 7. Bh4 {[%emt 0:02:55]} Be7 {[%emt 0:00:14]} 8. e3 {[%emt 0:01:50]} O-O {[%emt 0:00:12]} 9. Bd3 {[%emt 0:02:04]} Re8 {[%emt 0:00:50]} 10. Nf3 {[%emt 0:06:06]} Ne4 {[%emt 0:01:51]} 11. Bxe7 {[%emt 0:14:13]} Qxe7 {[%emt 0:00:13]} 12. Ne5 {[%emt 0:03:56]} Nd7 {[%emt 0:22:43]} 13. Bxe4 {[%emt 0:08:13]} dxe4 {[%emt 0:00:37]} 14. Nxd7 {[%emt 0:00:29]} Bxd7 {[%emt 0:01:12]} 15. O-O {[%emt 0:05:50]} Rad8 {[%emt 0:07:25]} 16. Rad1 {[%emt 0:07:16]} Bg4 {[%emt 0:13:54]} 17. Rde1 {[%emt 0:01:14]} Rd6 {[%emt 0:17:18]} 18. Qxe4 {[%emt 0:03:19]} Qxe4 {[%emt 0:00:11]} 19. Nxe4 {[%emt 0:00:04] White is weak on the light squares} Rxe4 {[%emt 0:00:04]} 20. f3 {[%emt 0:00:07] [#]} Bxf3 {[%emt 0:00:31]} 21. gxf3 $11 {[%emt 0:00:10][%mdl 4096] Endgame. KRR-KRR} Re7 {[%emt 0:02:22]} 22. Kf2 {[%emt 0:01:04]} Rd5 {[%emt 0:01:16]} 23. Re2 {[%emt 0:04:11]} f5 {[%emt 0:05:31][%cal Of5f4]} 24. f4 {[%emt 0:00:51]} c5 {[%emt 0:01:10]} 25. dxc5 $1 {[%emt 0:01:01]} Rxc5 {[%emt 0:00:02]} 26. Rd1 {[%emt 0:02:09]} Rec7 {[%emt 0:00:36]} 27. Rdd2 {[%emt 0:04:50]} Kf7 {[%emt 0:00:56]} 28. Kf3 {[%emt 0:01:14]} g5 {[%emt 0:01:39]} 29. h3 {[%emt 0:02:35]} Rc1 {[%emt 0:03:27]} 30. Rd6 {[%emt 0:04:29]} R1c6 {[%emt 0:05:53]} 31. Red2 {[%emt 0:05:54]} Rxd6 {[%emt 0:01:04]} 32. Rxd6 {[%emt 0:00:04] KR-KR} Kg7 {[%emt 0:00:26]} 33. b4 {[%emt 0:02:23]} a5 {[%emt 0:00:57]} 34. bxa5 {[%emt 0:03:38]} Rc5 {[%emt 0:00:08] The position is equal.} 35. a6 {[%emt 0:00:57]} bxa6 {[%emt 0:00:01]} 36. Rxa6 {[%emt 0:00:07]} Rc2 {[%emt 0:00:02]} 37. a4 {[%emt 0:02:51]} Rh2 {[%emt 0:01:16]} 38. Kg3 {[%emt 0:01:20]} Re2 {[%emt 0:00:34]} 39. Re6 {[%emt 0:02:19]} Ra2 {[%emt 0:00:17]} 40. Re5 {[%emt 0:01:51] Black must now prevent fxg5.} Kf6 {[%emt 0:01:03]} 41. Ra5 {[%emt 0:33:09] And now Ra6+ would win.} Re2 $1 {[%emt 0:02:50]} 42. Re5 {[%emt 0:00:00]} Ra2 {[%emt 0:01:10]} 43. a5 {[%emt 0:00:00]} Ra3 {[%emt 0:06:16]} 44. h4 {[%emt 0:00:00]} gxf4+ {[%emt 0:03:20]} 45. Kxf4 {[%emt 0:00:00]} Ra4+ {[%emt 0:00:07]} 46. e4 {[%emt 0:00:00]} fxe4 {[%emt 0:00:05][%cal Oe4e3] [#] ( -> ...e3+!)} 47. Rf5+ {[%emt 0:00:00]} ({Much less strong is} 47. Rxe4 $6 Rxa5 48. Rb4 h5 $16) 47... Kg7 {[%emt 0:07:37]} 48. h5 {[%emt 0:00:00]} Kg8 {[%emt 0:00:20]} 49. Rb5 {[%emt 0:00:00]} Kf7 {[%emt 0:01:32]} 50. Rb7+ {[%emt 0:00:00]} Kf8 {[%emt 0:02:39]} 51. Ra7 {[%emt 0:00:00]} Kg8 {[%emt 0:01:09]} 52. a6 {[%emt 0:00:00]} Kf8 {[%emt 0:00:13]} 53. Ke3 {[%emt 0:00:00]} Kg8 {[%emt 0:00:35]} 54. Ra8+ {[%emt 0:00:00]} Kg7 {[%emt 0:01:16]} 55. a7 {[%emt 0:00:00]} Kh7 $1 {[%emt 0:00:39] Weighted Error Value: White=0.03 (flawless) /Black=0.03 (flawless) .  Inaccurate:     	White=2     	Black=2      OK:         	White=11    	Black=21     Best:        	White=2     	Black=3      Strong:       	White=1     	Black=2      Brilliant:      	---       	Black=1} 1/2-1/2

[Event "WSTCC-50 2024"]
[Site "Krakow"]
[Date "2024.07.05"]
[Round "4.6"]
[White "Lauterbach, Ingrid"]
[Black "Kaspi, Alexander"]
[Result "0-1"]
[ECO "E15"]
[WhiteElo "2023"]
[BlackElo "2365"]
[Annotator "TA"]
[PlyCount "100"]
[EventDate "2024.07.01"]
[EventType "team-tourn"]
[EventCountry "POL"]
[SourceTitle "playchess.com"]
[Source "ChessBase"]
[SourceQuality "1"]
[TimeControl "40/5400+30:1800+30"]

{[%evp 33,100,-14,0,0,0,-12,-10,-47,-43,-58,-48,-70,-59,-102,-73,-106,-108,-97,-108,-120,-102,-115,-116,-97,-75,-80,-82,-104,-106,-110,-79,-104,-100,-107,-107,-218,-231,-292,-283,-320,-314,-346,-345,-370,-379,-395,-401,-423,-418,-536,-534,-531,-518,-908,-570,-5325,-5241,-29979,-745,-29968,-1600,-29980,-29959,-29981,-29982,-29993,-29994,-29994,-29995]} 1. d4 {[%emt 0:00:03]} Nf6 {[%emt 0:00:37]} 2. c4 {[%emt 0:00:33]} e6 {[%emt 0:00:33]} 3. Nf3 {[%emt 0:00:33]} b6 {[%emt 0:00:08]} 4. g3 {[%emt 0:01:44]} Ba6 {[%emt 0:00:11]} 5. Qc2 {[%emt 0:00:16]} Bb7 {[%emt 0:03:42]} 6. Bg2 {[%emt 0:00:30]} c5 {[%emt 0:08:35]} 7. dxc5 {[%emt 0:05:09] E15: Queen's Indian: 4 g3 sidelines, 4 g3 Ba6 and 4 g3 Bb7 early deviations.} bxc5 {[%emt 0:00:22]} 8. Nc3 {[%emt 0:00:22]} Be7 {[%emt 0:00:20]} 9. O-O {[%emt 0:00:57]} O-O {[%emt 0:02:09]} 10. Bg5 {[%emt 0:06:38]} Qb6 {[%emt 0:07:42]} 11. Rad1 {[%emt 0:14:31]} d6 $146 {[%emt 0:03:11]} ({Predecessor:} 11... h6 12. Bf4 d6 13. e4 Rd8 14. Na4 Qc6 15. e5 dxe5 16. Bxe5 Nbd7 17. Bf4 Nb6 18. Nxb6 axb6 {0-1 Chernyshov,K (2532)-Nisipeanu,L (2661) Bayern-chI Bank Hofmann 16th 2012 (5)}) 12. e4 {[%emt 0:06:24]} Nbd7 {[%emt 0:15:39]} 13. Rfe1 {[%emt 0:05:21]} Rab8 {[%emt 0:06:14]} 14. b3 {[%emt 0:01:11]} a6 {[%emt 0:00:51]} 15. Bf4 {[%emt 0:05:08]} Rbd8 {[%emt 0:04:39]} 16. e5 {[%emt 0:04:16]} Bxf3 {[%emt 0:02:34]} 17. Bxf3 {[%emt 0:01:12]} (17. exd6 $5 Bxd1 18. Rxd1 $15) 17... dxe5 {[%emt 0:00:33]} 18. Bc1 {[%emt 0:01:51]} Ne8 {[%emt 0:02:01]} 19. Bg2 {[%emt 0:13:12]} f5 {[%emt 0:03:01]} 20. f3 {[%emt 0:02:41]} Nd6 {[%emt 0:03:45]} 21. g4 {[%emt 0:08:21]} g6 {[%emt 0:00:50]} 22. Bh6 {[%emt 0:02:02]} Rfe8 {[%emt 0:00:37]} 23. gxf5 {[%emt 0:06:14]} gxf5 {[%emt 0:04:42]} 24. Bh3 {[%emt 0:00:24]} Kh8 {[%emt 0:00:17]} 25. Kh1 {[%emt 0:00:33]} Nf7 {[%emt 0:00:23]} 26. Be3 {[%emt 0:00:30]} Qc6 {[%emt 0:03:58]} 27. Qe2 {[%emt 0:02:44]} Nf8 {[%emt 0:01:23]} 28. Bg2 {[%emt 0:01:44]} Qc7 {[%emt 0:00:07]} 29. Rxd8 {[%emt 0:00:57]} Rxd8 {[%emt 0:00:15]} 30. Rd1 {[%emt 0:00:28]} Rxd1+ {[%emt 0:03:31]} 31. Qxd1 {[%emt 0:00:15]} Qd6 {[%emt 0:00:14]} 32. Qe2 {[%emt 0:01:10]} Nd7 {[%emt 0:01:34]} 33. Na4 {[%emt 0:01:53]} Nd8 {[%emt 0:01:01]} 34. b4 {[%emt 0:01:58]} (34. Nb2 $17) 34... cxb4 $19 {[%emt 0:00:28]} 35. Bf1 {[%emt 0:03:03]} Qc6 {[%emt 0:00:29]} 36. Nb2 {[%emt 0:00:24]} a5 {[%emt 0:00:21]} 37. Kg2 {[%emt 0:00:16]} Bc5 {[%emt 0:00:54]} 38. Bg5 {[%emt 0:02:18]} Nf7 {[%emt 0:00:19]} 39. Bh4 {[%emt 0:00:06]} Bd4 {[%emt 0:02:40]} 40. Nd1 {[%emt 0:00:08]} a4 {[%emt 0:00:58]} 41. Be7 {[%emt 0:30:22]} b3 {[%emt 0:31:43]} 42. axb3 {[%emt 0:00:07]} axb3 {[%emt 0:00:05]} 43. Ba3 {[%emt 0:00:05]} (43. c5 $142 Bxc5 (43... Nxc5 $2 44. Qb5 $19) 44. Bh4) 43... Nc5 {[%emt 0:01:29]} 44. Nb2 {[%emt 0:01:37]} Qa8 {[%emt 0:01:18]} 45. Bxc5 {[%emt 0:00:00]} Bxc5 {[%emt 0:00:00]} (45... Qg8+ $142 46. Kh3 Bxc5 47. Nd3 Ng5+ 48. Kh4 Qg7 (48... Bd4 $2 49. c5 $19) 49. Nxc5 b2 50. Qd1 Nxf3+ 51. Qxf3 b1=Q (51... b1=B $2 52. Qa8+ Qg8 53. Qxg8+ Kxg8 54. Nxe6 $18) 52. Qa8+ Qg8 53. Qxg8+ Kxg8 54. Be2 Qe1+ 55. Kg5 Qxe2 56. Kf6 f4 (56... Qxh2 57. Kxe6 Qf4 58. Nd7 Qxc4+ 59. Kd6 e4 60. Nf6+ Kf7 61. Nd5 e3 62. Nxe3 Qe6+ 63. Kc5 Qxe3+ 64. Kd5 Qc3 65. Kd6 Qa5 66. Kc6 Ke6 67. Kb7 Kd6 68. Kb8 Kc6 69. Kc8 Qc7#) (56... Qxc4 57. Nxe6 f4 58. Ng5 h6 59. Nh3 Qd4 60. Ke7 f3 61. Kf6 Qh4+ 62. Kxe5 Qxh3 63. Kd4 f2 64. Ke4 Qe6+ 65. Kd4 f1=Q 66. Kc3 Qec4+ 67. Kd2 Qfe2#) 57. h4 f3 (57... Qxc4 58. Kxe5 Qxc5+ 59. Kxf4 Qc3 60. h5 Qd3 61. Kg4 Qe3 62. Kh4 Kg7 63. Kg4 Kf6 64. h6 e5 65. Kh4 Kf5 66. Kh5 Qh3#) 58. Nd7 Qxc4 (58... f2 59. Ke7 Qxc4 60. Nf6+ Kh8 61. Ne8 f1=Q 62. Nd6 Qb4 63. Kxe6 Qa6 64. Kf7 Qaxd6 65. h5 Qe7#) 59. Nxe5 Qf4+ (59... Qxh4+ 60. Kxe6 f2 61. Nf3 Qc4+ 62. Kf6 f1=Q 63. Ke7 Qc7+ 64. Ke6 Qa6+ 65. Kf5 Qg6#) 60. Kxe6 f2 (60... Qxh4 61. Nxf3 Qh3+ 62. Ke5 Qxf3 63. Kd4 h5 64. Ke5 h4 65. Ke6 h3 66. Ke5 h2 67. Kd4 h1=Q 68. Ke5 Qe4+ 69. Kd6 Qc6+ 70. Ke7 Qh4#) 61. Nd3 Qc4+ (61... f1=Q 62. Nxf4 Qxf4 63. Kd5 Qxh4 64. Kc5 Kf7 65. Kb5 Ke6 66. Kc5 Qa4 67. Kb6 Kd6 68. Kb7 Qb5+ 69. Ka8 Kc7 70. Ka7 Qb7#) 62. Ke7 Qxd3 (62... f1=B 63. Nf2 Qc5+ 64. Kf6 Qxf2+ 65. Ke5 Bg2 66. Ke6 Qd4 67. Ke7 Bh3 68. h5 Qd7+ 69. Kf6 Qg7#) (62... Qe4+ 63. Kd7 f1=Q 64. Kd6 Qf6+ 65. Kc7 Qfc6+ 66. Kd8 Qxh4#) (62... f1=Q 63. Nf4 Qc7+ 64. Ke6 Qfxf4 65. h5 Qff7#) 63. h5 f1=Q (63... f1=B 64. Kf6 Qd4+ 65. Ke7 Bh3 66. h6 Bc8 67. Ke8 Qd7#) 64. Ke6 Qf7+ 65. Ke5 Qff5#) 46. Nd3 {[%emt 0:00:00]} Bd4 {[%emt 0:00:00]} (46... Qg8+ $142 47. Kh3 b2 48. Nxb2 Ng5+ 49. Kh4 e4 50. fxe4 Nxe4 51. Nd3 Qg5+ 52. Kh3 Qh6+ 53. Kg2 Qg6+ 54. Kh3 Bd6 55. Qd1 Qh6+ 56. Kg2 Qxh2+ 57. Kf3 Qh5+ (57... Qg3+ {gets mated.} 58. Ke2 Qg4+ 59. Ke3 Qxd1 60. c5 Bxc5+ 61. Kf4 Bd4 62. Bh3 Qxd3 63. Bxf5 Qg3+ 64. Kxe4 Qe3#) 58. Ke3 Qxd1 59. c5 Bxc5+ 60. Kf4 Bd4 (60... Qxf1+ {is a self mate.} 61. Ke5 Qxd3 62. Kxe6 Ng3 63. Kf7 Qd7+ 64. Kf6 Qe7#) 61. Bh3 Qxd3 (61... Qd2+ {leads to mate.} 62. Kf3 Qxd3+ 63. Kg2 Qg3+ 64. Kh1 Qxh3#) 62. Bxf5 Qg3+ 63. Kxe4 Qe3#) 47. c5 {[%emt 0:00:00]} e4 {[%emt 0:00:00]} 48. fxe4 {[%emt 0:00:00]} fxe4 {[%emt 0:00:00]} 49. Nb2 {[%emt 0:00:00]} Qg8+ {[%emt 0:00:00]} 50. Kh3 {[%emt 0:00:00]} Ng5+ {[%emt 0:00:00]} 0-1

[Event "WSTCC-50 2024"]
[Site "Krakow"]
[Date "2024.07.05"]
[Round "4.6"]
[White "Jhunjhnuwala, Naresh"]
[Black "Narva, Regina"]
[Result "0-1"]
[ECO "B23"]
[WhiteElo "2009"]
[BlackElo "1921"]
[Annotator "NA RC"]
[PlyCount "90"]
[EventDate "2024.07.01"]
[EventType "team-tourn"]
[EventCountry "POL"]
[SourceTitle "playchess.com"]
[Source "ChessBase"]
[SourceQuality "1"]
[TimeControl "40/5400+30:1800+30"]

1. e4 {[%emt 0:00:00]} c5 {[%emt 0:00:00]} 2. Nc3 {[%emt 0:00:00]} Nc6 {[%emt 0:00:59]} 3. f4 {[%emt 0:00:00]} d6 {[%emt 0:00:52]} 4. Nf3 {[%emt 0:00:23]} g6 {[%emt 0:02:42]} 5. Bc4 {[%emt 0:01:48]} Bg7 {[%emt 0:01:36]} 6. Ng5 {[%emt 0:04:44]} e6 {[%emt 0:03:01]} 7. O-O {[%emt 0:01:41]} Nh6 {[%emt 0:21:13]} 8. d3 {[%emt 0:01:27]} O-O {[%emt 0:03:22]} 9. a4 {[%emt 0:04:46]} Nd4 {[%emt 0:07:19]} 10. h3 {[%emt 0:10:18]} a6 {[%emt 0:03:47]} 11. Be3 {[%emt 0:04:00]} Rb8 {[%emt 0:05:14]} 12. Qd2 {[%emt 0:11:47]} b5 {[%emt 0:04:32]} 13. axb5 {[%emt 0:07:07]} axb5 {[%emt 0:01:10]} 14. Bb3 {[%emt 0:04:12]} d5 {[%emt 0:08:55]} 15. exd5 {[%emt 0:00:52]} exd5 {[%emt 0:00:29]} 16. Nd1 {[%emt 0:10:57]} Nhf5 {[%emt 0:02:06]} 17. Kh2 {[%emt 0:01:10]} Nxe3 {[%emt 0:10:27]} 18. Nxe3 {[%emt 0:00:45]} Nxb3 {[%emt 0:00:07]} 19. cxb3 {[%emt 0:00:07]} d4 {[%emt 0:00:04]} 20. Ng4 {[%emt 0:02:26]} Qd5 {[%emt 0:00:57]} 21. b4 {[%emt 0:02:44]} Bb7 {[%emt 0:03:53]} 22. Nf3 {[%emt 0:01:31]} c4 {[%emt 0:00:58]} 23. dxc4 {[%emt 0:00:13]} bxc4 {[%emt 0:00:07]} 24. Ra5 {[%emt 0:00:32]} Qd6 {[%emt 0:00:45]} 25. Nge5 {[%emt 0:01:28]} Bxf3 {[%emt 0:01:36]} 26. Rxf3 {[%emt 0:02:36]} Qxb4 {[%emt 0:00:19]} 27. Qxb4 {[%emt 0:00:19]} Rxb4 {[%emt 0:00:05]} 28. Rc5 {[%emt 0:00:27]} Bxe5 {[%emt 0:02:46]} 29. fxe5 {[%emt 0:00:44]} d3 {[%emt 0:00:31]} 30. Rf1 {[%emt 0:02:33]} Rd8 {[%emt 0:00:47]} 31. Rd1 {[%emt 0:02:09]} d2 {[%emt 0:00:33]} 32. Kg1 {[%emt 0:01:23]} Rd4 {[%emt 0:01:54]} 33. Kf2 {[%emt 0:01:18]} Rxb2 {[%emt 0:01:27]} 34. Ke3 {[%emt 0:01:21]} Rd3+ {[%emt 0:00:51]} 35. Ke2 {[%emt 0:00:09]} Rg3 {[%emt 0:01:59]} 36. Rxc4 {[%emt 0:10:22]} Rxg2+ {[%emt 0:00:15]} 37. Kf1 {[%emt 0:02:18]} Rg3 {[%emt 0:02:44]} 38. Rd4 {[%emt 0:01:50]} Rxh3 {[%emt 0:00:36]} 39. R1xd2 {[%emt 0:00:20]} Rxd2 {[%emt 0:00:31]} 40. Rxd2 {[%emt 0:00:08]} Rh5 {[%emt 0:00:54]} 41. Re2 {[%emt 0:31:07]} Kf8 {[%emt 0:30:34]} 42. e6 {[%emt 0:00:37]} f6 {[%emt 0:00:58]} 43. e7+ {[%emt 0:01:25]} Ke8 {[%emt 0:00:07]} 44. Re6 {[%emt 0:01:31]} Re5 {[%emt 0:00:42]} 45. Rxf6 {[%emt 0:02:10]} Rf5+ {[%emt 0:00:08]} 0-1

[Event "WSTCC-50 2024"]
[Site "Krakow"]
[Date "2024.07.05"]
[Round "4.7"]
[White "Flear, Glenn C"]
[Black "Arnason, Jon L"]
[Result "1/2-1/2"]
[ECO "D20"]
[WhiteElo "2390"]
[BlackElo "2421"]
[Annotator "TA"]
[PlyCount "133"]
[EventDate "2024.07.01"]
[EventType "team-tourn"]
[EventCountry "POL"]
[SourceTitle "playchess.com"]
[Source "ChessBase"]
[SourceQuality "1"]
[TimeControl "40/5400+30:1800+30"]

{[%evp 29,133,0,0,0,0,-20,-31,-30,-22,-97,-78,-85,-101,-92,-94,-88,-94,-97,-76,-69,-80,-67,-36,-108,-117,-97,-100,-112,-111,-140,-128,-129,-132,-202,-175,-187,-187,-208,-200,-219,-152,-147,-147,-154,-147,-147,-147,-147,-154,-167,-145,-145,-145,-145,-138,-138,-138,-138,-138,-138,-138,-138,-122,-122,-122,-159,-131,-159,-168,-159,-152,-152,-152,-152,-151,-144,-151,-221,-233,-233,-233,-225,-235,-380,-360,-358,-343,-380,-158,-158,-135,-135,-112,-142,-8,-112,0,0,0,0,0,0,0,0,0,0]} 1. d4 {[%emt 0:00:07]} d5 {[%emt 0:00:00]} 2. c4 {[%emt 0:00:11]} dxc4 {[%emt 0:00:00]} 3. e3 {[%emt 0:00:23]} Nf6 {[%emt 0:01:07]} 4. Bxc4 {[%emt 0:00:18]} e6 {[%emt 0:00:13]} 5. Nf3 {[%emt 0:00:24]} a6 {[%emt 0:00:17]} 6. Qe2 {[%emt 0:01:12]} c5 {[%emt 0:02:52]} 7. dxc5 {[%emt 0:01:19]} Bxc5 {[%emt 0:00:09]} 8. O-O {[%emt 0:01:09]} b5 {[%emt 0:04:59]} 9. Bd3 {[%emt 0:01:48]} Nbd7 {[%emt 0:01:27]} 10. e4 {[%emt 0:09:25] D26: Queen's Gambit Accepted: 4 e3 e6 5 Bxc5 c5 sidelines.} Bb7 {[%emt 0:02:08]} 11. Nbd2 {[%emt 0:03:27]} Be7 {[%emt 0:15:22]} 12. Nb3 {[%emt 0:20:41]} O-O {[%emt 0:03:33]} 13. Bd2 {[%emt 0:03:10]} b4 {[%emt 0:21:09]} 14. Rac1 $146 {[%emt 0:11:02]} ({Predecessor:} 14. a3 a5 15. axb4 axb4 16. Bf4 Qb6 17. Nfd2 {½-½ Lengyel,L-Petrosian,T Alekhine Memorial-02 1971 (13)}) 14... a5 {[%emt 0:02:28]} 15. Bf4 {[%emt 0:03:19]} a4 {[%emt 0:07:55]} 16. Bc7 {[%emt 0:03:41]} Qc8 {[%emt 0:00:29]} 17. Na5 {[%emt 0:01:20]} Nc5 {[%emt 0:02:35]} 18. Bb6 $1 {[%emt 0:08:18]} Bxe4 {[%emt 0:12:12]} 19. Bxc5 {[%emt 0:12:09]} (19. Bxe4 $11 {keeps the balance.} Nfxe4 20. Ne5) 19... Bxc5 $17 {[%emt 0:01:30]} (19... Rxa5 $2 {loses.} 20. Bxe7 Qd7 21. Bxf8 (21. Bxe4 Qxe7 22. Qe3 Qa7 $18) 21... Bxd3 22. Qd2 $18) 20. Bxe4 {[%emt 0:00:24]} Rxa5 {[%emt 0:01:18]} 21. Ne5 {[%emt 0:01:13]} Nxe4 {[%emt 0:03:23]} 22. Qxe4 {[%emt 0:00:11]} Qa8 {[%emt 0:00:13]} 23. Rfe1 {[%emt 0:06:32]} Qxe4 {[%emt 0:09:40]} (23... Rc8 {looks sharper.} 24. Qf4 Ra7 25. Red1 Rac7) 24. Rxe4 {[%emt 0:00:05]} Bd6 {[%emt 0:00:52]} 25. Nc6 {[%emt 0:02:54]} Rb5 {[%emt 0:01:21]} 26. Rcc4 {[%emt 0:02:13]} (26. Rd4 $15 Rd5 27. Rcc4) 26... b3 $17 {[%emt 0:00:57]} 27. axb3 {[%emt 0:01:26]} Rxb3 {[%emt 0:02:44]} 28. Rxa4 {[%emt 0:00:24]} Rxb2 {[%emt 0:00:06]} 29. g3 {[%emt 0:01:14]} Bc5 {[%emt 0:00:26]} 30. Nd4 {[%emt 0:01:33]} Rd8 {[%emt 0:00:16]} 31. Ne2 {[%emt 0:01:11]} (31. Kg2 $17) 31... g6 {[%emt 0:01:11]} 32. Rac4 {[%emt 0:00:55]} Rd5 {[%emt 0:00:40]} 33. Kf1 {[%emt 0:01:58]} Kg7 {[%emt 0:00:23]} 34. Rc3 {[%emt 0:00:53]} Rf5 {[%emt 0:01:03]} 35. Rf4 {[%emt 0:00:50]} Rxf4 {[%emt 0:00:41]} 36. gxf4 {[%emt 0:00:06]} Bb6 {[%emt 0:00:09]} 37. h3 {[%emt 0:00:15]} Kf6 {[%emt 0:00:34]} 38. Rc4 {[%emt 0:00:23]} h5 {[%emt 0:00:58]} 39. Re4 {[%emt 0:00:32]} Bc7 {[%emt 0:02:05]} 40. Kg2 {[%emt 0:01:04]} Bb8 {[%emt 0:00:29]} 41. Kf3 {[%emt 0:30:42]} Ba7 {[%emt 0:30:23]} 42. Ra4 {[%emt 0:00:00]} Bb6 {[%emt 0:00:00]} 43. Rc4 {[%emt 0:00:00]} Ke7 {[%emt 0:00:00]} 44. Ra4 {[%emt 0:00:00]} Kd6 {[%emt 0:00:00]} 45. Ra3 {[%emt 0:00:00]} f5 {[%emt 0:00:00]} 46. Rd3+ {[%emt 0:00:00] [#]} Ke7 $1 {[%emt 0:00:00]} 47. Nd4 {[%emt 0:00:00]} Kf6 {[%emt 0:00:00]} 48. Kg2 {[%emt 0:00:00]} h4 {[%emt 0:00:00]} 49. Rd1 {[%emt 0:00:00]} Rb4 {[%emt 0:00:00]} 50. Ne2 {[%emt 0:00:00]} Bc7 {[%emt 0:00:23]} 51. Kf3 {[%emt 0:00:00]} Rb3+ {[%emt 0:01:18]} 52. Kg2 {[%emt 0:00:00]} Rb2 {[%emt 0:00:09]} 53. Kf3 {[%emt 0:00:00]} (53. Rc1 $17 {is a better defense.}) 53... g5 $19 {[%emt 0:00:22]} 54. fxg5+ {[%emt 0:00:00]} Kxg5 {[%emt 0:00:04]} 55. Nd4 {[%emt 0:00:00]} Kf6 {[%emt 0:00:07]} 56. Re1 {[%emt 0:00:00]} (56. Rc1 $142 Bb6 57. Rc4) 56... e5 $19 {[%emt 0:00:21]} 57. Re2 {[%emt 0:00:00]} Rb1 {[%emt 0:00:41]} 58. Nc2 {[%emt 0:00:00]} Rg1 {[%emt 0:00:48]} (58... e4+ $19 {is more deadly.} 59. Kg2 Bb6) 59. Re1 $17 {[%emt 0:00:00]} Rg8 {[%emt 0:01:44]} 60. Ne3 {[%emt 0:00:00]} e4+ {[%emt 0:00:27]} 61. Ke2 {[%emt 0:00:00]} Ke6 {[%emt 0:00:22]} (61... Bf4 $17 {Threatens to win with ...Bxe3.} 62. Ra1 Bxe3 63. Ra6+ Kg5 64. Kxe3 Rd8) 62. Ra1 {[%emt 0:00:00]} (62. Rc1 $11 {was the only way to keep the balance.} Bd6 63. Rc6) 62... f4 {[%emt 0:01:10]} (62... Rb8 $17 {...f4 would now be deadly.} 63. Ra6+ Rb6 64. Rxb6+ Bxb6) 63. Ra6+ $11 {[%emt 0:00:00]} Bd6 {[%emt 0:02:09]} 64. Nc4 {[%emt 0:00:41]} Rd8 {[%emt 0:00:04]} 65. Nd2 {[%emt 0:00:54]} Kd5 {[%emt 0:01:31]} 66. Ra5+ $1 {[%emt 0:00:26]} Bc5 {[%emt 0:00:19]} 67. Nxe4 {[%emt 0:00:43]} 1/2-1/2